bitfinex/quotes_ETHUSD_20220118
["timestamp","ask_amount","ask_price","bid_price","bid_amount"]
[1642493288128,2.39731025,3182.7,3182.6,2.9905]
[1642493288336,0.00682108,3182.7,3182.6,5.3905]
[1642493288530,7.5455,3183.1,3182.7,5.4]
[1642493288730,7.5455,3183.1,3182.8,0.447]
[1642493288731,7.42,3183.1,3182.8,0.447]
[1642493288932,0.00113685,3182.9,3182.8,1.747]
[1642493289134,0.00113685,3182.9,3182.8,1.047]
[1642493289333,7.42,3183.1,3182.9,5.4]
[1642493289534,7.42,3183.1,3182.9,6.5255]
[1642493289932,7.42,3183.1,3183.0,4.85]
[1642493290133,7.42,3183.1,3183.0,9.0899753]
[1642493290333,7.42113684,3183.1,3183.0,9.6817753]
[1642493290535,0.00113684,3183.1,3183.0,9.6817753]
[1642493290734,0.00113684,3183.1,3183.0,7.1888]
[1642493290938,3.17972353,3183.6,3183.1,4.9]
[1642493291237,3.716,3183.9,3183.6,1.33757408]
[1642493291439,3.716,3183.9,3183.6,3.16717408]
[1642493291640,0.00397897,3183.8,3183.7,1.0]
[1642493291885,0.00397897,3183.8,3183.7,1.3]
[1642493292090,0.00397897,3183.8,3183.7,1.5165]
[1642493292289,0.00397897,3183.8,3183.7,4.2165]
[1642493292590,3.716,3183.9,3183.8,6.92159149]
[1642493292791,3.716,3183.9,3183.8,7.79409149]
[1642493292993,3.17972353,3184.3,3183.8,7.79409149]
[1642493292994,3.17972353,3184.3,3183.9,5.4]
[1642493293295,0.00227369,3184.2,3184.0,1.447]
[1642493293488,0.00227369,3184.2,3184.0,1.747]
[1642493293690,3.17972353,3184.3,3184.0,1.747]
[1642493293889,3.17972353,3184.3,3184.0,0.3]
[1642493294091,0.12777369,3184.2,3183.8,0.3]
[1642493294293,0.00227369,3184.2,3183.8,0.49961049]
[1642493294488,0.12720527,3184.1,3183.8,0.49961049]
[1642493294689,0.00170527,3184.1,3183.8,0.49961049]
[1642493294890,0.12663684,3184.0,3183.8,0.49961049]
[1642493295093,0.00113684,3184.0,3183.8,0.49961049]
[1642493295291,0.1255,3184.5,3183.8,0.49961049]
[1642493295292,0.12947896,3184.5,3183.8,0.49961049]
[1642493295490,2.40499367,3184.0,3183.7,0.125702]
[1642493296169,2.40499367,3184.0,3183.7,1.125702]
[1642493296669,1.60459492,3184.2,3183.7,1.425702]
[1642493296875,1.60459492,3184.2,3184.1,5.09781322]
[1642493297070,1.60459492,3184.2,3184.1,1.3]
[1642493297468,1.60459492,3184.2,3184.1,0.3]
[1642493297669,1.60459492,3184.2,3184.1,1.75534296]
[1642493297870,1.60459492,3184.2,3184.1,1.45534296]
[1642493298072,1.60459492,3184.2,3184.1,0.3]
[1642493298275,1.60459492,3184.3,3184.1,0.3]
[1642493298474,1.60459492,3184.3,3183.7,0.725702]
[1642493298674,1.60459492,3184.3,3183.7,0.851202]
[1642493298675,1.60743703,3184.3,3183.7,0.851202]
[1642493298874,1.60743703,3184.3,3183.7,1.551202]
[1642493299075,1.60743703,3184.3,3183.7,0.551202]
[1642493299275,1.60743703,3184.3,3183.8,1.40476679]
[1642493299482,1.60459492,3184.2,3183.7,0.425702]
[1642493299676,1.60459492,3184.2,3183.8,0.3]
[1642493299879,1.60459492,3184.0,3183.8,0.3]
[1642493300076,1.60459492,3184.0,3183.7,0.425702]
[1642493300476,1.60459492,3184.0,3183.8,1.37689242]
[1642493300676,1.60459492,3184.0,3183.8,1.67689242]
[1642493301078,1.60459492,3184.0,3183.8,2.67689242]
[1642493301485,1.60459492,3184.0,3183.9,4.8]
[1642493301783,0.00227369,3184.2,3184.0,5.48142792]
[1642493301985,2.40499367,3184.3,3184.1,0.447]
[1642493302180,2.39944837,3184.5,3184.2,5.48082863]
[1642493302380,2.39944837,3184.5,3184.2,5.92782863]
[1642493302580,2.39944837,3184.5,3184.4,3.0377902]
[1642493302780,2.39944837,3184.5,3184.4,2.11347826]
[1642493302981,2.40342733,3184.5,3184.4,3.11347826]
[1642493303231,2.40342733,3184.5,3184.4,1.8613]
[1642493303531,2.40342733,3184.5,3184.4,0.5613]
[1642493303532,0.00397896,3184.5,3184.4,0.5613]
[1642493303832,3.97465441,3185.2,3184.7,1.13722977]
[1642493304031,3.7161,3185.4,3184.7,2.75802977]
[1642493304231,0.00341054,3185.1,3184.8,1.52483204]
[1642493304431,0.00341054,3185.1,3184.8,2.52483204]
[1642493304634,0.00284212,3185.0,3184.8,2.52483204]
[1642493305033,3.7161,3185.4,3184.8,2.52483204]
[1642493305034,0.00227369,3184.9,3184.8,2.52483204]
[1642493306333,0.00227369,3184.9,3184.8,2.55897527]
[1642493306533,3.7161,3185.4,3184.9,5.45]
[1642493306733,3.7161,3185.4,3185.0,0.447]
[1642493306979,3.772,3185.8,3185.0,1.747]
[1642493306980,0.0022737,3185.3,3185.0,1.747]
[1642493307381,0.00170527,3185.2,3185.0,1.77970767]
[1642493307578,0.00170527,3185.2,3185.0,0.77970767]
[1642493307778,2.68399077,3185.3,3185.0,0.77970767]
[1642493307979,2.68399077,3185.3,3185.0,2.28733805]
[1642493308184,2.68399077,3185.3,3185.2,0.6]
[1642493308381,2.68399077,3185.3,3185.2,0.3]
[1642493308583,2.68512762,3185.3,3185.2,0.3]
[1642493308782,2.68512762,3185.3,3185.1,1.3]
[1642493308986,0.00113685,3185.3,3185.1,0.3]
[1642493309183,0.00113685,3185.3,3185.1,1.0]
[1642493309383,0.00113685,3185.3,3185.1,1.3]
[1642493309585,2.68399077,3185.9,3185.1,2.59449004]
[1642493309985,0.00284212,3185.8,3185.5,1.16333886]
[1642493310193,0.00284212,3185.8,3185.5,1.91033886]
[1642493310390,0.00227369,3185.7,3185.5,2.21033886]
[1642493310629,0.00227369,3185.7,3185.5,2.59613886]
[1642493310835,0.00170527,3185.6,3185.5,2.59613886]
[1642493311034,0.00170527,3185.6,3185.5,3.59613886]
[1642493311335,2.68399077,3185.9,3185.6,2.85]
[1642493311336,4.29198326,3185.9,3185.6,2.85]
[1642493311533,4.29198326,3185.9,3185.7,1.747]
[1642493311735,0.00113685,3185.8,3185.7,1.747]
[1642493311934,0.00113685,3185.8,3185.7,0.747]
[1642493313334,1.60912934,3185.8,3185.7,0.747]
[1642493314679,1.60912934,3185.8,3185.7,1.96694615]
[1642493315079,1.60912934,3185.8,3185.7,1.747]
[1642493315280,0.00113685,3185.8,3185.7,1.747]
[1642493315483,0.00113685,3185.8,3185.7,0.747]
[1642493316381,1.60912934,3185.8,3185.7,0.747]
[1642493316781,1.60912934,3185.8,3185.7,0.3]
[1642493316982,1.60912934,3185.8,3185.6,0.3]
[1642493317181,1.60912934,3185.8,3185.5,0.3]
[1642493317385,0.00113685,3185.8,3185.4,0.6]
[1642493317580,0.00113685,3185.8,3185.3,1.047]
[1642493317780,0.00113685,3185.8,3185.3,2.047]
[1642493317980,0.00113685,3185.8,3185.4,0.00113685]
[1642493318232,1.60685657,3185.7,3185.4,0.00113685]
[1642493318433,1.60685657,3185.7,3185.4,1.1772289]
[1642493318635,1.60685657,3185.7,3185.4,2.1772289]
[1642493319035,0.00113685,3185.8,3185.5,6.197]
[1642493319335,0.00113685,3185.8,3185.7,4.54702596]
[1642493319534,0.00113685,3185.8,3185.7,2.89402596]
[1642493319938,0.00113685,3185.8,3185.7,1.89402596]
[1642493320236,0.00113685,3185.8,3185.7,2.89402596]
[1642493320434,2.41198874,3186.5,3185.9,1.28776565]
[1642493320637,2.41198874,3186.5,3185.9,1.88776565]
[1642493320836,0.00341054,3186.4,3185.9,1.88776565]
[1642493321034,0.00341054,3186.4,3185.9,0.6]
[1642493321233,0.00284211,3186.3,3185.9,0.6]
[1642493321436,0.00284211,3186.3,3185.9,0.3]
[1642493321635,0.00227369,3186.2,3185.8,0.3]
[1642493322085,2.41198874,3186.4,3185.8,0.3]
[1642493322086,0.00170527,3186.1,3185.8,0.25555844]
[1642493322494,0.00113684,3186.0,3185.8,0.3]
[1642493322691,0.00113684,3186.0,3185.4,0.00113685]
[1642493322891,0.00284211,3186.3,3185.4,0.50061049]
[1642493323092,0.00284211,3186.3,3185.4,0.80174734]
[1642493323290,0.00227369,3186.2,3185.5,0.00170527]
[1642493323495,2.41426243,3186.2,3185.8,1.72785653]
[1642493323692,0.00170527,3186.1,3185.8,1.72785653]
[1642493323892,0.00170527,3186.1,3185.8,2.02785653]
[1642493324094,0.00113684,3186.0,3185.8,2.02785653]
[1642493324494,0.00170527,3186.1,3185.8,2.02785653]
[1642493324893,0.00113684,3186.0,3185.8,2.02785653]
[1642493325294,0.00397896,3186.5,3185.8,2.02785653]
[1642493325498,2.4159677,3186.5,3185.8,3.45725446]
[1642493325729,2.4159677,3186.5,3185.9,0.48125797]
[1642493325929,2.4159677,3186.5,3186.0,0.1255]
[1642493326130,2.4159677,3186.5,3186.0,1.79342073]
[1642493326332,2.4159677,3186.5,3186.0,0.5725]
[1642493326533,2.4159677,3186.5,3186.0,0.8725]
[1642493326732,0.00397896,3186.5,3186.0,1.1725]
[1642493328132,0.00397896,3186.5,3186.2,1.27483183]
[1642493328533,0.00397896,3186.5,3186.2,1.87483183]
[1642493328936,1.60989689,3186.4,3186.2,1.87483183]
[1642493329395,0.00284211,3186.3,3186.2,1.87483183]
[1642493332095,0.00284211,3186.3,3186.2,1.90950302]
[1642493332293,0.00284211,3186.3,3186.2,1.87483183]
[1642493333531,1.60989689,3186.8,3186.3,15.49963153]
[1642493333831,0.0022737,3186.7,3186.3,15.49963153]
[1642493334031,1.61217059,3186.7,3186.4,1.3]
[1642493334232,0.00170527,3186.6,3186.4,1.6]
[1642493334430,0.00170527,3186.6,3186.3,15.49963153]
[1642493334631,0.00113685,3186.5,3186.3,15.49963153]
[1642493334832,0.00113685,3186.5,3186.3,15.003]
[1642493335031,0.00170527,3186.6,3186.3,15.003]
[1642493335436,0.00113685,3186.5,3186.3,15.003]
[1642493335633,0.00113685,3186.5,3186.4,1.0]
[1642493335832,0.00170527,3186.6,3186.4,1.0]
[1642493336033,2.41198874,3186.7,3186.4,1.3]
[1642493336034,0.00113685,3186.5,3186.4,1.3]
[1642493336532,0.00170527,3186.5,3186.4,1.3]
[1642493336733,1.61158261,3186.5,3186.4,1.3]
[1642493337679,1.61158261,3186.5,3186.4,2.75771364]
[1642493337880,0.00170527,3186.5,3186.4,2.75771364]
[1642493339085,0.00170527,3186.5,3186.4,1.3]
[1642493340286,0.00170527,3186.5,3186.4,2.53004811]
[1642493341134,0.00170527,3186.5,3186.4,1.3]
[1642493341535,0.00170527,3186.5,3186.3,15.20421359]
[1642493341933,0.00170527,3186.5,3186.3,15.003]
[1642493342933,0.00170527,3186.5,3186.3,15.603]
[1642493343739,2.41369401,3186.5,3186.3,15.603]
[1642493343939,2.41369401,3186.5,3186.3,15.303]
[1642493343940,4.86629965,3186.5,3186.3,15.303]
[1642493344139,0.01293673,3186.4,3185.3,0.1255]
[1642493344391,0.01293673,3186.4,3185.4,0.49963153]
[1642493344392,3.96083673,3186.4,3185.4,0.49963153]
[1642493344603,3.83533673,3186.4,3185.4,0.50474734]
[1642493344786,3.83533673,3186.4,3185.5,0.00454738]
[1642493345186,2.51263312,3186.3,3185.5,0.00454738]
[1642493345386,3.83533673,3186.4,3185.5,0.00454738]
[1642493345995,1.60997865,3186.2,3185.5,0.00454738]
[1642493346191,1.60997865,3186.2,3185.8,1.51628079]
[1642493346591,1.60997865,3186.2,3185.9,0.00227369]
[1642493346891,4.29310754,3186.3,3186.1,1.35692647]
[1642493347093,4.29310754,3186.3,3186.1,1.65692647]
[1642493347292,4.29310754,3186.3,3186.1,1.95692647]
[1642493347493,4.29310754,3186.3,3186.1,2.40392647]
[1642493347692,2.41369401,3186.5,3186.3,0.04138291]
[1642493348129,2.41369401,3186.5,3186.3,1.3]
[1642493348130,0.00170527,3186.5,3186.3,1.3]
[1642493348333,0.00170527,3186.5,3186.3,1.6]
[1642493348538,0.00170527,3186.5,3186.4,1.27841594]
[1642493348938,0.00170527,3186.5,3186.4,1.87841594]
[1642493350637,0.00170527,3186.5,3186.4,0.6]
[1642493351040,0.00170527,3186.5,3186.2,1.62513153]
[1642493351041,0.00170527,3186.5,3186.2,2.22513153]
[1642493351238,0.00170527,3186.5,3186.2,1.09963153]
[1642493351438,0.00170527,3186.5,3186.2,2.09963153]
[1642493351737,0.00170527,3186.5,3186.2,1.09963153]
[1642493351982,0.00170527,3186.5,3186.2,1.6]
[1642493352681,0.00170527,3186.5,3186.2,1.0]
[1642493353187,0.00170527,3186.5,3186.0,0.1255]
[1642493353386,0.00170527,3186.5,3185.9,0.00227369]
[1642493353590,0.1255,3186.4,3186.1,0.00113684]
[1642493353786,0.1255,3186.4,3185.9,0.00227369]
[1642493353985,0.1255,3186.4,3185.3,0.00568423]
[1642493354187,1.38513135,3186.2,3185.3,0.00568423]
[1642493354388,0.1255,3186.1,3185.3,0.00568423]
[1642493354585,0.1255,3186.1,3185.2,0.00625266]
[1642493354787,0.9303,3186.1,3185.2,0.00625266]
[1642493354988,0.1255,3186.0,3185.2,0.00625266]
[1642493355738,3.10247313,3186.0,3185.0,0.0073895]
[1642493356439,3.10247313,3186.0,3184.9,0.30795793]
[1642493356639,5.51446187,3186.0,3184.9,0.30795793]
[1642493356839,5.51446187,3186.0,3185.0,0.0073895]
[1642493357844,1.60933324,3185.8,3185.0,0.0073895]
[1642493358043,2.97853021,3185.7,3185.0,0.0073895]
[1642493358844,4.58786345,3185.7,3185.0,0.0073895]
[1642493360090,4.46236345,3185.7,3185.0,0.0073895]
[1642493360489,1.60933324,3185.5,3185.0,0.0073895]
[1642493360692,2.68908126,3185.4,3185.0,0.0073895]
[1642493361090,2.51804113,3185.4,3184.9,0.00795793]
[1642493361299,2.51804113,3185.4,3185.0,0.0073895]
[1642493361491,2.51804113,3185.4,3184.9,0.00795793]
[1642493361691,4.12737437,3185.4,3184.9,0.00795793]
[1642493362490,5.34634946,3185.4,3184.9,0.00795793]
[1642493362890,4.12737437,3185.4,3184.9,0.00795793]
[1642493363537,1.60933324,3185.3,3184.9,0.00795793]
[1642493364042,2.52056648,3185.2,3184.9,0.00795793]
[1642493364240,1.60933324,3185.3,3184.9,0.00795793]
[1642493364640,4.33291151,3185.4,3184.9,0.00795793]
[1642493364840,1.60933324,3185.4,3184.9,0.00795793]
[1642493365040,1.60933324,3185.4,3185.0,0.1255]
[1642493365440,1.60933324,3185.4,3185.1,0.00682108]
[1642493365640,1.60933324,3185.5,3185.2,0.1255]
[1642493366040,1.60933324,3185.5,3185.3,0.00568423]
[1642493366239,1.60933324,3185.5,3185.4,0.1255]
[1642493366745,1.60933324,3185.5,3185.4,0.13061581]
[1642493366986,1.60933324,3185.5,3185.4,0.00511581]
[1642493367186,1.1516,3185.8,3185.4,0.00511581]
[1642493367388,4.82908791,3186.0,3185.4,0.00511581]
[1642493367389,1.60933324,3186.0,3185.4,0.00511581]
[1642493368590,4.293044,3186.0,3185.4,0.00511581]
[1642493368791,4.293044,3186.0,3185.7,1.12442288]
[1642493368994,4.293044,3186.0,3185.8,0.4255]
[1642493369192,4.293044,3186.0,3185.8,0.42834211]
[1642493369395,4.293044,3186.0,3185.9,0.00227369]
[1642493369592,4.293044,3186.0,3185.9,0.12777369]
[1642493369793,2.68371076,3186.2,3185.9,0.12777369]
[1642493370191,2.68371076,3186.2,3186.0,0.00170527]
[1642493370733,2.68371076,3186.2,3186.1,0.1255]
[1642493370934,2.68371076,3186.2,3186.0,0.00170527]
[1642493371133,2.68371076,3186.2,3186.1,0.00113684]
[1642493371338,2.68371076,3186.2,3186.0,0.00170527]
[1642493376584,2.68371076,3186.2,3185.9,0.00227369]
[1642493376786,2.68371076,3186.2,3185.9,0.74927369]
[1642493377188,2.68371076,3186.2,3186.0,0.00170527]
[1642493378536,2.51807432,3186.1,3186.0,0.00170527]
[1642493378934,2.51807432,3186.1,3185.6,0.00397896]
[1642493379537,5.20178508,3186.1,3185.6,0.00397896]
[1642493379739,5.20178508,3186.1,3185.3,0.00568423]
[1642493380238,0.1255,3186.0,3185.3,0.00568423]
[1642493380438,0.1255,3186.0,3184.9,0.00795793]
[1642493380637,1.1255,3186.0,3184.9,0.00795793]
[1642493380836,3.9,3185.0,3184.9,0.00795793]
[1642493381038,4.8027,3185.0,3184.9,2.42330637]
[1642493381640,0.9027,3185.0,3184.9,2.42330637]
[1642493382089,0.1255,3185.0,3184.9,0.00795793]
[1642493382294,2.68371076,3185.0,3184.9,0.00795793]
[1642493382490,2.80921076,3185.0,3184.9,0.00795793]
[1642493382887,5.34483384,3185.0,3184.9,0.00795793]
[1642493383089,2.80921076,3185.0,3184.9,0.00795793]
[1642493383694,4.418544,3185.0,3184.9,0.00795793]
[1642493383894,4.293044,3185.0,3184.9,0.00795793]
[1642493384596,2.68371076,3185.0,3184.9,0.00795793]
[1642493384996,2.68371076,3185.0,3184.9,0.30795793]
[1642493385393,2.68371076,3185.0,3184.9,0.00795793]
[1642493386030,2.68371076,3185.1,3184.9,0.30795793]
[1642493386429,2.68371076,3185.1,3185.0,0.0073895]
[1642493386831,5.31515671,3185.1,3184.9,0.00795793]
[1642493387030,0.1255,3185.5,3184.9,0.00795793]
[1642493387031,2.62559511,3185.0,3184.9,0.00795793]
[1642493387630,3.96693741,3185.0,3184.9,0.00795793]
[1642493387834,3.96693741,3185.0,3184.8,3.94875793]
[1642493387835,5.4,3184.9,3184.8,3.94875793]
[1642493388036,5.45,3184.8,3184.1,3.34640678]
[1642493388237,3.65301044,3184.7,3184.1,0.1255]
[1642493388435,3.65301044,3184.7,3184.2,0.00397896]
[1642493388634,3.65301044,3184.7,3184.1,7.896e-05]
[1642493388635,5.45,3184.5,3184.1,7.896e-05]
[1642493388839,3.24790042,3184.4,3184.1,7.896e-05]
[1642493389514,1.0,3184.3,3184.1,7.896e-05]
[1642493389714,8.36252132,3184.2,3184.1,7.896e-05]
[1642493390714,8.36252132,3184.2,3183.0,0.1256]
[1642493390915,2.96252132,3184.2,3183.0,0.1256]
[1642493391116,2.96252132,3184.2,3183.4,1.49780389]
[1642493391314,2.83702132,3184.2,3183.4,1.49780389]
[1642493391513,1.60933324,3184.4,3183.5,0.12947896]
[1642493391715,2.68371076,3184.1,3183.5,0.12947896]
[1642493391913,2.68371076,3184.1,3183.6,0.00341054]
[1642493392113,2.68371076,3184.1,3183.7,0.1255]
[1642493392515,2.68371076,3184.1,3183.8,0.00227369]
[1642493392516,2.57246406,3184.0,3183.8,0.00227369]
[1642493392718,2.68371076,3184.1,3183.8,0.00227369]
[1642493393016,2.79334761,3184.2,3183.8,0.00227369]
[1642493393242,3.11562031,3184.6,3183.8,0.00227369]
[1642493393640,0.00170527,3184.5,3183.8,0.00227369]
[1642493393941,0.00113685,3184.4,3183.7,0.12834212]
[1642493394143,0.00113685,3184.4,3183.7,0.00284212]
[1642493394144,2.68371076,3184.1,3183.7,0.00284212]
[1642493394540,2.68371076,3184.1,3183.7,0.00227369]
[1642493394739,2.57783776,3184.0,3183.7,0.00227369]
[1642493394942,5.79819718,3184.4,3183.2,0.00568423]
[1642493395140,5.79819718,3184.4,3183.3,0.1255]
[1642493395345,5.79933403,3184.4,3183.3,0.1255]
[1642493395542,5.67383403,3184.4,3183.4,0.00454739]
[1642493395741,2.99012327,3184.4,3183.4,0.00454739]
[1642493395943,0.00113685,3184.4,3183.4,0.00454739]
[1642493396143,0.00113685,3184.4,3183.4,0.30454739]
[1642493396544,0.00113685,3184.4,3183.5,0.00397896]
[1642493398588,0.1255,3184.3,3183.5,0.00397896]
[1642493398791,18.38,3184.2,3183.5,0.00397896]
[1642493398987,3.30521513,3184.1,3183.4,0.00454739]
[1642493399591,1.0,3184.0,3183.4,0.00454739]
[1642493399791,3.18191845,3183.9,3183.4,0.00454739]
[1642493399991,3.48191845,3183.9,3182.6,0.00909478]
[1642493400390,3.79077177,3183.9,3182.6,0.00909478]
[1642493401041,3.49077177,3183.9,3182.6,0.00909478]
[1642493401243,0.43435332,3183.9,3182.6,0.00909478]
[1642493401451,0.1255,3184.0,3182.7,0.1255]
[1642493401647,1.60933324,3183.8,3182.8,0.01234845]
[1642493401845,1.60933324,3183.8,3182.9,0.1255]
[1642493402043,1.60933324,3183.8,3182.9,0.1328895]
[1642493402243,1.60933324,3183.8,3183.0,0.00682108]
[1642493402644,2.81383324,3184.2,3183.0,0.00682108]
[1642493402849,0.1255,3184.1,3183.0,0.00682108]
[1642493403851,1.73483324,3184.1,3183.0,0.00682108]
[1642493404049,2.73483324,3184.1,3183.0,0.00682108]
[1642493404685,0.01262769,3183.9,3183.0,0.00682108]
[1642493404887,0.5725,3183.8,3183.0,0.00682108]
[1642493405083,2.40854771,3183.7,3182.4,0.01023162]
[1642493405283,1.10545074,3183.2,3182.4,0.01023162]
[1642493405485,0.1255,3183.1,3182.4,0.01023162]
[1642493406488,0.1255,3183.2,3182.4,0.01023162]
[1642493406889,0.1255,3183.2,3182.2,0.01136847]
[1642493407094,4.02267189,3183.2,3182.2,0.01136847]
[1642493407293,19.38,3183.1,3182.2,0.01136847]
[1642493407594,19.38,3183.1,3181.7,0.01421059]
[1642493407595,18.38,3182.9,3181.7,0.01421059]
[1642493407793,18.38,3182.7,3181.7,0.01421059]
[1642493407993,18.68,3182.5,3181.7,0.01421059]
[1642493408241,18.68,3182.5,3181.6,0.1255]
[1642493408242,5.4,3182.3,3181.6,1.059e-05]
[1642493408442,5.4,3182.3,3181.5,0.00210064]
[1642493408443,0.5727,3182.2,3181.5,0.00210064]
[1642493408638,1.57554212,3182.2,3181.5,0.00210064]
[1642493408839,0.0022737,3182.1,3181.3,4.01384091]
[1642493409042,0.1257,3182.0,3181.3,4.01384091]
[1642493409238,0.1257,3182.0,3181.4,0.00170527]
[1642493409239,18.38,3181.9,3181.4,0.00170527]
[1642493409440,0.1257,3181.8,3181.4,0.00170527]
[1642493409639,19.3437,3181.8,3181.4,0.00170527]
[1642493409840,19.3437,3181.8,3180.7,0.00568423]
[1642493410041,22.38771916,3181.7,3180.7,0.00568423]
[1642493410241,0.1257,3181.6,3180.7,0.00568423]
[1642493410443,18.5057,3181.6,3180.7,0.00568423]
[1642493410641,3.79401888,3181.5,3180.7,0.00568423]
[1642493411247,3.79401888,3181.5,3180.6,0.00625265]
[1642493411742,1.0,3181.5,3180.6,0.00625265]
[1642493411986,3.63325064,3181.5,3180.6,0.00625265]
[1642493412187,1.4257,3181.6,3180.6,0.00625265]
[1642493412384,0.3,3181.6,3180.6,0.00625265]
[1642493412586,1.3,3181.6,3180.6,0.00625265]
[1642493412785,0.3,3181.6,3180.6,0.00625265]
[1642493412987,1.0,3181.6,3180.6,0.00625265]
[1642493413189,2.61744222,3181.5,3180.6,0.00625265]
[1642493413391,1.3,3181.6,3180.6,0.00625265]
[1642493413694,2.63472311,3181.5,3180.6,0.00625265]
[1642493413889,2.63472311,3181.5,3180.8,0.00390461]
[1642493414090,2.93472311,3181.5,3180.8,0.00390461]
[1642493414290,2.93472311,3181.5,3180.9,0.00454738]
[1642493414589,1.0,3181.6,3180.9,0.00454738]
[1642493414590,1.3,3181.6,3180.9,0.00454738]
[1642493414990,2.95837999,3181.8,3180.9,0.00454738]
[1642493414991,0.3,3181.7,3180.9,0.00454738]
[1642493415392,2.77464954,3181.8,3180.9,0.00454738]
[1642493415655,0.27753679,3181.9,3180.9,0.00454738]
[1642493416147,0.27753679,3181.9,3180.9,0.30454738]
[1642493416545,0.27753679,3181.9,3181.0,0.00397896]
[1642493417447,0.40323679,3181.9,3180.9,0.00454738]
[1642493417646,0.57753679,3181.9,3180.9,0.00454738]
[1642493417846,0.27753679,3181.9,3180.9,0.00454738]
[1642493418751,0.27753679,3181.9,3181.1,0.00388319]
[1642493418953,2.90857574,3181.9,3181.1,0.00388319]
[1642493419149,0.27753679,3181.9,3181.2,0.00284211]
[1642493419783,0.40323679,3181.9,3181.2,0.00284211]
[1642493419982,0.57753679,3181.9,3181.2,0.00284211]
[1642493420183,0.27753679,3181.9,3181.2,0.00284211]
[1642493420585,0.57753679,3181.9,3181.2,0.00284211]
[1642493420785,2.8983663,3181.9,3181.2,0.00284211]
[1642493420988,4.29603314,3181.8,3181.2,0.00284211]
[1642493421189,2.61881116,3181.7,3181.2,0.00284211]
[1642493421587,4.29603314,3181.8,3181.2,0.00284211]
[1642493421985,2.6866999,3181.6,3181.2,0.00284211]
[1642493422791,2.6866999,3181.7,3181.2,0.00284211]
[1642493423241,5.41387499,3181.7,3181.2,0.00284211]
[1642493423443,1.0,3181.6,3181.2,0.00284211]
[1642493423743,8.37084197,3181.5,3181.4,0.00386177]
[1642493423942,27.05084197,3181.5,3181.4,0.00386177]
[1642493424147,5.4,3181.4,3181.2,0.00284211]
[1642493424343,21.7313267,3181.3,3181.2,4.211e-05]
[1642493424543,21.7313267,3181.3,3179.8,0.01080004]
[1642493424544,23.4783267,3181.3,3179.8,0.01080004]
[1642493424743,23.4783267,3181.3,3179.8,0.00800004]
[1642493424942,1.0,3181.0,3179.7,0.00856847]
[1642493425143,18.38,3180.8,3179.7,0.00856847]
[1642493425343,18.38,3180.6,3179.7,0.00856847]
[1642493425542,19.53462825,3180.4,3179.7,0.00856847]
[1642493425742,0.1257,3180.3,3179.7,0.00856847]
[1642493425944,0.1257,3180.3,3179.1,0.01197901]
[1642493426142,18.38,3180.2,3179.1,0.01197901]
[1642493426441,18.38,3180.2,3178.9,0.01311585]
[1642493426442,0.1258,3180.1,3178.9,0.01311585]
[1642493426644,1.2646,3180.1,3178.9,0.01311585]
[1642493426897,2.87082368,3180.0,3178.9,0.01311585]
[1642493427188,0.1258,3180.1,3178.9,0.01311585]
[1642493427385,4.2802777,3180.2,3178.9,0.01311585]
[1642493427786,1.58105117,3180.2,3179.3,1.18514331]
[1642493427991,1.58105117,3180.2,3179.3,1.48514331]
[1642493428194,2.6866999,3179.9,3179.6,1.27577132]
[1642493428393,2.6866999,3179.9,3179.6,1.57577132]
[1642493428592,2.6866999,3179.9,3179.7,0.00856847]
[1642493429397,2.6866999,3180.4,3179.7,0.00856847]
[1642493429793,2.6866999,3180.4,3179.4,0.01027374]
[1642493429993,2.6866999,3180.4,3179.5,1.7602799]
[1642493430393,2.6866999,3180.4,3179.6,0.00913689]
[1642493430645,0.1257,3180.9,3179.6,0.00913689]
[1642493430646,1.58105117,3180.5,3179.6,0.00913689]
[1642493430946,1.58105117,3180.5,3179.7,0.1257]
[1642493431253,1.58105117,3180.5,3179.8,0.00800004]
[1642493431449,4.0,3180.4,3179.4,0.4257]
[1642493431646,4.0,3180.4,3179.4,1.1257]
[1642493431846,0.00284212,3180.3,3179.6,0.00113685]
[1642493432051,2.68954202,3180.3,3179.6,0.00113685]
[1642493432246,0.00227369,3180.2,3179.6,0.00113685]
[1642493432648,0.00170527,3180.1,3179.6,0.00113685]
[1642493432947,0.00227369,3180.2,3179.6,0.00113685]
[1642493433152,0.00113684,3180.0,3179.6,0.00113685]
[1642493433352,0.00170527,3180.1,3179.6,0.00113685]
[1642493433553,0.00284212,3180.3,3179.6,0.00113685]
[1642493433752,0.00113684,3180.0,3179.6,0.00113685]
[1642493433954,0.00227369,3180.2,3180.0,0.00113684]
[1642493434154,1.42946169,3180.4,3180.0,0.00113684]
[1642493434402,2.6866999,3180.3,3180.0,0.00113684]
[1642493434990,2.6866999,3180.4,3180.0,0.00113684]
[1642493435991,2.6866999,3180.5,3180.2,1.27995613]
[1642493436194,2.6866999,3180.5,3180.1,0.0257]
[1642493436391,2.68840517,3180.5,3180.1,0.0257]
[1642493436591,2.68840517,3180.5,3180.0,0.00113684]
[1642493436992,0.00170527,3180.5,3180.0,0.00113684]
[1642493437392,0.00170527,3180.5,3180.0,0.30113684]
[1642493437593,0.00170527,3180.5,3180.1,1.50229093]
[1642493438248,0.00170527,3180.5,3180.0,0.00113684]
[1642493439349,0.00170527,3180.5,3180.1,1.28017805]
[1642493439852,0.00170527,3180.5,3180.0,0.00113684]
[1642493440050,0.94240527,3180.5,3180.0,0.00113684]
[1642493440449,0.1257,3180.4,3180.0,0.00113684]
[1642493441350,0.94240527,3180.5,3180.0,0.00113684]
[1642493441552,0.94240527,3180.5,3179.8,1.15857287]
[1642493441992,0.94240527,3180.5,3179.9,0.00170527]
[1642493442193,2.68719566,3180.3,3179.9,0.00170527]
[1642493442993,2.68719566,3180.3,3179.5,0.00397896]
[1642493443199,0.00170527,3180.5,3179.5,0.00397896]
[1642493443200,2.68719566,3180.4,3179.5,0.00397896]
[1642493443398,3.13719566,3180.4,3179.5,0.00397896]
[1642493443597,3.69869566,3180.4,3179.5,0.00397896]
[1642493443998,3.64402668,3180.3,3179.4,0.00454739]
[1642493444199,0.1257,3180.2,3179.4,0.00454739]
[1642493444400,2.76972668,3180.2,3179.4,0.00454739]
[1642493444601,1.0,3180.1,3179.3,0.00511581]
[1642493444801,0.1257,3180.0,3179.3,0.00511581]
[1642493445002,0.1257,3180.0,3178.9,0.0073895]
[1642493445840,2.76972668,3180.0,3178.9,0.0073895]
[1642493446041,1.0,3179.9,3178.9,0.0073895]
[1642493446240,0.1258,3179.8,3178.9,0.0073895]
[1642493446543,3.25543752,3179.8,3178.9,0.0073895]